Cogmind - Beta 12 @@@ ROGUE MODE // 2023.04.19 @ 09:37:24 Player: maxwell Result: Destroyed by P-70 Sage with High-powered Shock Rifle Performance ------------- Evolutions (4) 2000 Regions Visited (19) 3800 Robots Destroyed (334) 1670 Value Destroyed (13382) 13382 Prototype IDs (43) 860 Alien Tech Used (0) 0 Bonus (5992) 5992 TOTAL SCORE: 27704 Bonus ------- High Alert Combat Kills 771 Follower Combat Kills 2305 Entered Garrisons 1000 Used RIF Installer 3000 Network Hubs Disabled 600 A7 Reached Mainframe 300 Met R17 at Cetus 500 Friendly Fire -2484 Cogmind --------- Core Integrity 0/850 Matter 125/300 Energy 350/350 System Corruption 19% Temperature Cool (0) Movement Immobile (Siege) Location -6/Garrison Parts ------- > --- POWER (1) -------- Reinforced Quantum Reactor > --- PROPULSION (4) --- Light Treads Medium Treads Centrium Heavy Treads > --- UTILITY (8) ------ Advanced Heat Sink Huge Storage Unit Improved Sensor Array Improved Signal Interpreter Advanced Targeting Computer Hacking Suite > --- WEAPON (2) ------- Force Rifle Force Rifle > --- INVENTORY (25) --- Compact Particle Reactor Medium Treads Experimental Sensor Array Force Field Improved Hacking Suite Advanced Hacking Suite Relay Coupler [NC] (22) Relay Coupler [Grunt] (26) Decoy Drone Bay (10/16) Force Rifle Force Rifle Force Rifle Force Rifle Force Rifle Phase Cannon Heavy Flak Cannon EMP Blaster Remote Datajack Remote Datajack Plasma Cutter Peak State ------------ > --- POWER ------------ Reinforced Fission Core > --- PROPULSION ------- Centrium Heavy Treads Centrium Heavy Treads > --- UTILITY ---------- Huge Storage Unit Experimental Sensor Array Advanced Targeting Computer Advanced Weapon Cycler Centrium Medium Armor Plating Improved Hacking Suite Improved Hacking Suite Improved System Shield > --- WEAPON ----------- Heavy Linear Accelerator > --- INVENTORY -------- Compact Particle Reactor Reinforced Quantum Reactor Centrium Heavy Treads Centrium Heavy Treads Centrium Heavy Treads Active Sensor Suite Centrium Medium Armor Plating Advanced Hacking Suite Advanced System Shield Relay Coupler [NC] Relay Coupler [Grunt] High-powered Tractor Beam Decoy Drone Bay Heavy Particle Cannon EMP Blaster Remote Datajack Plasma Cutter [Rating: 118] Favorites ----------- Power Cooled Ion Engine Engine Cooled Ion Engine Power Core Reinforced Fission Core Reactor Reinforced Quantum Reactor Propulsion Light Treads Treads Light Treads Leg Aluminum Leg Wheel Wheel Utility Huge Storage Unit Device Disposable Heat Sink Storage Huge Storage Unit Processor Advanced Targeting Computer Hackware Hacking Suite Protection Light Armor Plating Weapon Autogun Energy Gun Field Laser Energy Cannon Heavy Particle Cannon Ballistic Gun Autogun Ballistic Cannon Heavy Linear Accelerator Launcher Mini Grenade Launcher Special Weapon Plasma Cutter Impact Weapon Great Maul Special Melee Weapon Improved Datajack Build | -11 -10 -10 -9 -9 -9 -8 -8 -8 -8 -8 -7 -7 -6 -6 -6 -6 -6 -6 -6 ------- Run | Jun Mat Min Mat Min Exi Min Mat Gar Mat Gar Fac Gar Fac Gar Ext Cet Arc Hub Gar Slots Evolved 8 | . . . 2 . . . 2 . . . 2 . 2 . . . . . . Power . | . . . . . . . . . . . . . . . . . . . . Propulsion 2 | . . . . . . . 2 . . . . . . . . . . . . Utility 6 | . . . 2 . . . . . . . 2 . 2 . . . . . . Weapon . | . . . . . . . . . . . . . . . . . . . . Parts Attached 333 | . 12 2 40 16 9 1 35 23 22 20 10 14 3 14 8 31 17 50 6 Power 22 | . 1 . 4 1 . . 2 1 . . 1 1 . 5 1 3 1 1 . Engine 15 | . 1 . 3 1 . . 2 1 . . 1 1 . 4 1 . . . . Core 4 | . . . 1 . . . . . . . . . . 1 . 1 1 . . Reactor 3 | . . . . . . . . . . . . . . . . 2 . 1 . Propulsion 66 | . 3 . 8 2 3 . 13 10 1 1 1 3 . 4 3 3 . 9 2 Treads 59 | . 3 . 8 2 3 . 9 8 1 1 1 3 . 4 3 3 . 8 2 Leg 1 | . . . . . . . . . . . . . . . . . . 1 . Wheel 6 | . . . . . . . 4 2 . . . . . . . . . . . Hover . | . . . . . . . . . . . . . . . . . . . . Flight . | . . . . . . . . . . . . . . . . . . . . Utility 134 | . 5 1 15 10 2 . 11 7 8 5 5 5 3 3 . 18 13 23 . Device 77 | . . . 7 10 1 . 7 3 5 3 2 2 2 3 . 9 9 14 . Storage 13 | . 2 1 5 . 1 . 1 1 . . . . . . . 1 . 1 . Processor 7 | . . . . . . . 1 . 1 . 1 1 . . . 2 . 1 . Hackware 9 | . . . . . . . . 1 1 . 1 . . . . 1 3 2 . Protection 28 | . 3 . 3 . . . 2 2 1 2 1 2 1 . . 5 1 5 . Artifact . | . . . . . . . . . . . . . . . . . . . . Weapon 111 | . 3 1 13 3 4 1 9 5 13 14 3 5 . 2 4 7 3 17 4 Energy Gun 17 | . 2 . 4 . . . 4 . . . . . . . . 1 . 4 2 Energy Cannon 39 | . . . 5 . . . 2 2 8 6 2 2 . 2 1 1 2 6 . Ballistic Gun 15 | . . 1 3 3 3 1 3 . . . . . . . . . . 1 . Ballistic Cannon 5 | . 1 . . . . . . . . . . . . . . . . 4 . Launcher 18 | . . . 1 . . . . 2 2 5 . 2 . . 1 3 . 1 1 Special Weapon 8 | . . . . . 1 . . . . . . . . . 2 2 1 1 1 Impact Weapon 8 | . . . . . . . . 1 2 3 1 1 . . . . . . . Slashing Weapon . | . . . . . . . . . . . . . . . . . . . . Piercing Weapon . | . . . . . . . . . . . . . . . . . . . . Special Melee Weapon 1 | . . . . . . . . . 1 . . . . . . . . . . Unidentified Prototypes 14 | . . . 3 2 . . . . . . . . . . . 6 . 3 . Corrupted Parts 13 | . . . . 1 . . . . . . . 2 . . . 7 . 3 . System Corruption 79 | . . . . 8 . . . . . . . 15 . . . 47 . 9 . Parts Lost 61 | . 3 3 9 3 . . 10 4 . 1 1 8 . . . . . 15 4 Power 4 | . 1 . 1 . . . 1 . . . . 1 . . . . . . . Propulsion 21 | . . 2 4 . . . 5 2 . . . 3 . . . . . 4 1 Utility 26 | . 1 1 3 3 . . 2 1 . 1 . 3 . . . . . 9 2 Weapon 10 | . 1 . 1 . . . 2 1 . . 1 1 . . . . . 2 1 Highest Loss Streak 4 | . 3 3 3 2 . . 2 1 . 1 1 4 . . . . . 4 4 To Critical Strikes . | . . . . . . . . . . . . . . . . . . . . Average Slot Usage (%) 86 | . 98 62 95 99 87 88 89 90 99 94 89 96 96 65 66 87 77 82 85 Engine 6 | . 14 8 8 11 11 11 9 9 9 9 7 7 6 5 6 . . . . Core 1 | . . . . . . . . . . . . . . . . 2 6 5 . Treads 23 | . 24 17 22 22 22 22 24 29 36 36 29 27 26 26 26 20 13 14 16 Wheel 1 | . . . . . . . 10 6 . . . . . . . . . . . Device 13 | . . . 24 30 26 22 9 7 7 5 4 9 20 5 6 9 8 16 17 Storage 8 | . 14 8 11 11 11 11 9 9 9 9 7 7 6 6 6 6 6 6 6 Processor 3 | . . . . . . . 5 . . . 2 10 6 . . 11 13 9 13 Hackware 5 | . . . . . . . . 5 9 9 12 8 6 6 6 8 12 13 6 Protection 4 | . 12 8 6 1 . . 2 8 8 9 7 8 9 . . 8 2 3 4 Energy Gun 2 | . 14 . 8 . . . 3 . . . . . . . . . . 2 5 Energy Cannon 5 | . . . 3 . . . . 10 14 10 13 10 13 13 9 2 6 4 2 Ballistic Gun 5 | . 6 7 8 21 10 22 13 . . . . . . . . . . . . Special Weapon 1 | . . . . . 5 . . . . . . . . . 2 5 5 . 2 Naked Turns 114 | . . 114 . . . . . . . . . . . . . . . . . Heaviest Build 293 | 11 33 34 101 109 217 219 228 293 108 105 105 113 111 195 189 181 125 146 129 Greatest Support 160 | 20 40 40 40 40 40 40 80 104 104 104 104 104 96 106 106 160 160 160 128 Greatest Overweight (x) 22 | . 1 1 4 2 5 5 22 22 1 1 1 1 1 2 1 2 . 1 1 Average Overweight (x) 1 | . . . . 2 3 5 7 3 . . . 1 1 1 1 . . . . Largest Inventory Capacity 35 | . 15 15 25 25 35 35 35 35 25 25 25 25 25 25 25 25 25 25 25 Average Capacity 25 | . 14 11 19 25 29 35 35 30 25 25 25 25 25 25 25 25 25 25 25 Most Carried 35 | . 11 11 25 25 35 35 35 35 25 25 25 25 25 25 25 25 25 25 24 Average Carried 24 | . 6 8 16 24 28 35 33 30 24 24 23 24 24 24 24 24 24 22 22 Final Capacity 35 | 8 15 5 25 25 35 35 35 25 25 25 25 25 25 25 25 25 25 25 25 Final Carried 35 | 6 7 5 25 23 35 35 35 25 25 24 25 25 25 25 25 25 25 24 21 Class Distribution -------------------- 41% | Mutant 30% | Scavenger-Mutant 18% | Hauler-Mutant 9% | Hacker-Mutant Dominant Class ---------------- Mutant | -10/Materials Mutant | -10/Mines Scavenger-Mutant | -9/Materials Mutant | -9/Mines Scavenger-Mutant | -9/Exiles Hauler-Mutant | -8/Mines Hauler-Mutant | -8/Materials Hauler-Mutant | -8/Garrison Mutant | -8/Materials Mutant | -8/Garrison Hacker-Mutant | -7/Factory Scavenger-Mutant | -7/Garrison Scavenger-Mutant | -6/Factory Mutant | -6/Garrison Mutant | -6/Extension Scavenger-Mutant | -6/Cetus Scavenger-Mutant | -6/Archives Hacker-Mutant | -6/Hub_04(d) Scavenger-Mutant | -6/Garrison Resources | -11 -10 -10 -9 -9 -9 -8 -8 -8 -8 -8 -7 -7 -6 -6 -6 -6 -6 -6 -6 ----------- Run | Jun Mat Min Mat Min Exi Min Mat Gar Mat Gar Fac Gar Fac Gar Ext Cet Arc Hub Gar Matter Collected 7979 | 200 253 20 941 412 190 159 1150 367 255 402 62 331 . 213 142 335 435 2112 . Remotely 1256 | . . . . 281 137 . 63 . . 105 40 . . . . 80 . 550 . Salvage Created 14097 | . 644 . 1915 384 240 150 1753 667 691 651 75 1055 . . 28 986 684 3167 1007 Parts 751 | . 43 . 113 16 23 11 86 39 33 49 3 39 . . 3 50 64 140 39 Haulers Intercepted 21 | . 2 . 4 . . . 4 . . . . . . . . . . 11 . Recyclers Shooed 10 | . 2 . 2 1 . . 2 . 3 . . . . . . . . . . Parts Field Recycled . | . . . . . . . . . . . . . . . . . . . . Retrieved Matter . | . . . . . . . . . . . . . . . . . . . . Parts Self-Destructed . | . . . . . . . . . . . . . . . . . . . . Prevented . | . . . . . . . . . . . . . . . . . . . . Kills | -11 -10 -10 -9 -9 -9 -8 -8 -8 -8 -8 -7 -7 -6 -6 -6 -6 -6 -6 -6 ------- Run | Jun Mat Min Mat Min Exi Min Mat Gar Mat Gar Fac Gar Fac Gar Ext Cet Arc Hub Gar Combat Hostiles Destroyed 257 | . 14 . 40 9 . 3 31 17 14 27 1 19 . . . 16 4 47 15 Melee 1 | . . . . . . . . . . 1 . . . . . . . . . Guns 91 | . 10 . 30 9 . 3 31 . . . . . . . . . . 5 3 Cannons 83 | . 4 . 7 . . . . 11 9 7 1 2 . . . 1 2 39 . AOE 58 | . . . 3 . . . . 6 4 19 . 8 . . . 11 . . 7 Classes Destroyed 18 | . 6 . 4 . . 1 4 1 . . . 1 . . . . . 1 . Worker 14 | . 3 . 1 1 . . 2 . . . . . . . 1 . . 6 . Builder 11 | . . . . . . . 2 . 4 . . . . . 1 . . 4 . Tunneler 2 | . . . . . . 1 1 . . . . . . . . . . . . Hauler 21 | . 2 . 4 . . . 4 . . . . . . . . . . 11 . Recycler 2 | . . . . . . . 1 . . . . . . . . . . 1 . Operator 12 | . 1 . 2 . . . . . . . . . . . . . 9 . . Watcher 13 | . 2 . 3 . . . 1 . 2 . . . . . . . . 5 . Swarmer 52 | . 3 . 7 . . . 7 4 4 12 . 2 . . . 5 . 8 . Cutter 1 | . . . . . . . . 1 . . . . . . . . . . . Grunt 127 | . 11 . 23 8 . 2 14 8 5 9 . 14 . . . 6 . 16 11 Brawler 5 | . . . 1 . . . . . . 2 . 2 . . . . . . . Duelist 7 | . . . 1 1 . 1 1 . . 1 . . . . . . . . 2 Protector 1 | . . . 1 . . . . . . . . . . . . . . . . Sentry 29 | . . . 7 . . . 4 2 2 2 1 1 . . . . 4 6 . Specialist 11 | . . . . . . . 4 1 . . . . . . . . . 6 . Hunter 13 | . . . . . . . 1 2 3 1 . . . . . . . 4 2 Programmer 6 | . . . . . . . . . . . . 1 . . . . . 5 . Heavy 2 | . . . . . . . . . . . . . . . . . . 2 . Cetus Guard 5 | . . . . . . . . . . . . . . . . 5 . . . Best Kill Streak 15 | . 6 . 6 3 . 3 5 4 6 7 1 8 . . 1 6 2 10 15 Combat Bots Only 15 | . 3 . 5 3 . 3 4 4 4 7 1 8 . . . 6 1 7 15 Max Kills in Single Turn 4 | . 1 . 2 1 . 1 1 2 3 3 1 2 . . 1 3 1 4 2 Gunslinging . | . . . . . . . . . . . . . . . . . . . . Exploded 3 | . . . 2 . . . . 1 3 3 . 1 . . . 3 . . 2 Melee 1 | . . . . . . . . . . 1 . . . . . . . . . Uniques/NPCs Destroyed 1 | . . . . . . . . . . . . . . . . 1 . . . A7 (-6/Cetus) Combat | -11 -10 -10 -9 -9 -9 -8 -8 -8 -8 -8 -7 -7 -6 -6 -6 -6 -6 -6 -6 -------- Run | Jun Mat Min Mat Min Exi Min Mat Gar Mat Gar Fac Gar Fac Gar Ext Cet Arc Hub Gar Damage Taken 18778 | . 720 363 1621 503 . 123 2285 1191 685 898 151 1027 . 576 509 635 610 6039 842 Core 2107 | . 43 196 271 102 . . 189 167 38 109 29 99 . 86 13 30 72 522 141 Absorbed by Shields 941 | . . . 158 133 . 35 179 26 . . . . . . . 51 . 359 . Reduced by Siege Mode 742 | . . . . . . . . . . . . . . . . . 47 637 58 Regen/Repaired (Parts) 369 | . . . . . . . . . . . 369 . . . . . . . . Core Remaining (%) 39 | 100 . 4 . . . 6 . . . 8 . 81 . . . . . . . Volleys Fired 1045 | . 71 . 116 32 19 8 145 52 38 49 4 44 . 6 18 51 144 218 30 Largest 2 | . 2 . 2 2 1 2 2 2 2 2 2 2 . 1 2 1 2 2 2 Hottest 240 | . 90 . 131 46 20 46 110 150 150 150 144 150 . 85 160 240 160 165 160 Shots Fired 1627 | . 139 . 226 66 23 18 290 81 73 75 7 57 . 6 19 52 158 298 39 Gun 733 | . 111 . 187 66 4 18 290 . . . . . . . . 1 . 35 21 Cannon 602 | . 28 . 36 . . . . 69 69 56 7 27 . 6 3 6 37 258 . Launcher 118 | . . . 3 . . . . 12 4 19 . 30 . . 1 22 6 4 17 Special 174 | . . . . . 19 . . . . . . . . . 15 23 115 1 1 Kinetic 592 | . 65 . 102 66 4 18 220 . . . . . . . . . . 117 . Thermal 865 | . 74 . 121 . 19 . 70 69 50 44 2 27 . 6 3 30 152 177 21 Explosive 29 | . . . . . . . . 5 4 19 . . . . 1 . . . . Electromagnetic 125 | . . . 3 . . . . 7 19 12 5 30 . . . 22 6 4 17 Robot Hit Streak 44 | . 16 . 14 10 13 6 11 5 12 10 5 3 . . 12 12 19 44 19 Robot Miss Streak 6 | . 4 . 3 3 2 2 6 4 3 2 1 5 . . 1 4 4 2 3 Penetration Max . | . . . . . . . . . . . . . . . . . . . . Secondary Targets 11 | . . . 2 3 . . 3 . . . . . . . . . . 1 2 Max Gunslinging Chain 1 | . . . 1 1 . . 1 . . . . . . . . . . 1 1 Shots Hit Robots 1058 | . 80 . 155 45 18 10 184 39 53 42 5 13 . . 16 24 125 222 27 Core Hits 561 | . 37 . 63 17 8 5 73 39 25 38 2 29 . . 4 52 50 91 28 Critical Kills 4 | . . . . . . . . . . . . 1 . . . . . 2 1 Critical Parts Destroyed 6 | . . . . 1 . 1 1 . . 1 . . . . . . . 1 1 Critical Strikes 35 | . 3 . 3 1 . 1 4 . . 1 . 1 . . . 1 4 14 2 Burn 8 | . 2 . 3 . . . 3 . . . . . . . . . . . . Meltdown 2 | . . . . . . . . . . . . 1 . . . . . 1 . Destroy 7 | . . . . 1 . 1 1 . . . . . . . . . . 2 2 Blast 12 | . 1 . . . . . . . . . . . . . . . . 11 . Smash 1 | . . . . . . . . . . 1 . . . . . . . . . Sever 5 | . . . . . . . . . . . . . . . . 1 4 . . Melee Attacks 28 | . . . . . . . . 4 6 15 2 1 . . . . . . . Impact 24 | . . . . . . . . 4 2 15 2 1 . . . . . . . Slashing . | . . . . . . . . . . . . . . . . . . . . Piercing . | . . . . . . . . . . . . . . . . . . . . Sneak Attacks 4 | . . . . . . . . . 4 . . . . . . . . . . Combat Hostiles . | . . . . . . . . . . . . . . . . . . . . Follow-up Attacks . | . . . . . . . . . . . . . . . . . . . . Damage Inflicted 33775 | . 1084 . 2821 787 216 200 3117 1594 1760 2427 123 1725 . . 166 2161 2010 11698 1886 Guns 8099 | . 762 . 2107 758 16 200 3117 . . . . . . . . . . 709 430 Cannons 15550 | . 313 . 527 . . . . 1000 1403 785 123 206 . . 25 122 906 10140 . Explosions 8270 | . . . 140 . . . . 594 281 1522 . 1519 . . 39 1871 120 728 1456 Melee 120 | . . . . . . . . . . 120 . . . . . . . . . Ramming 374 | . 9 . 47 29 . . . . 76 . . . . . 102 . . 111 . Kinetic 12136 | . 464 . 1060 758 16 200 2240 . . . . . . . . . . 7398 . Thermal 13487 | . 611 . 1574 . 200 . 877 1000 925 725 25 260 . . 25 1219 1890 3461 695 Explosive 2264 | . . . . . . . . 422 281 1522 . . . . 39 . . . . Electromagnetic 5394 | . . . 140 . . . . 172 478 60 98 1465 . . . 942 120 728 1191 Impact 120 | . . . . . . . . . . 120 . . . . . . . . . Slashing . | . . . . . . . . . . . . . . . . . . . . Piercing . | . . . . . . . . . . . . . . . . . . . . Highest Corruption 47 | . 1 1 . 8 8 8 1 1 1 1 . 20 . . . 47 47 18 19 Average Corruption 10 | . 1 1 . 8 8 8 1 1 1 1 . 16 . . . 30 31 13 18 Corruption Purged 42 | . . . . . . . . . . . . . . . . . 42 . . Corruption Blocked . | . . . . . . . . . . . . . . . . . . . . Effects 488 | . 2 4 . 18 74 26 1 11 6 13 . 43 . . . 17 103 159 11 Message Errors 141 | . 1 2 . 6 19 10 1 1 1 1 . 13 . . . 7 35 42 2 Matter Fused 104 | . 1 . . 4 18 2 . 6 1 2 . 10 . . . 2 21 34 3 Heat Flow Errors 48 | . . 1 . . 7 3 . . 1 2 . 4 . . . 2 13 12 3 Energy Discharges 55 | . . 1 . 3 8 5 . 2 . 1 . 5 . . . 3 6 20 1 Parts Rejected 2 | . . . . . . . . . . . . . . . . 1 . 1 . Parts Fused 2 | . . . . . 1 . . . . . . . . . . . . 1 . Data Loss (minor) 51 | . . . . 1 13 2 . . 1 4 . 2 . . . . 9 19 . Data Loss (major) 20 | . . . . . 2 1 . 1 . 1 . 3 . . . 1 6 5 . Misfires 33 | . . . . 3 4 2 . 1 2 1 . 4 . . . 1 3 12 . Alerts 8 | . . . . . 2 1 . . . . . 1 . . . . 2 2 . Misdirections 3 | . . . . . . . . . . . . . . . . . . 3 . Weapon Failures 21 | . . . . 1 . . . . . 1 . 1 . . . . 8 8 2 Overload Shots 1 | . . . . . . . . . . . . . . . . 1 . . . Overflow Damage 1062 | . 5 . . . . . . . 23 116 . 6 . . . 25 13 874 . Projectiles 912 | . 5 . . . . . . . 23 10 . . . . . 8 13 853 . Explosions 93 | . . . . . . . . . . 49 . 6 . . . 17 . 21 . Melee 57 | . . . . . . . . . . 57 . . . . . . . . . Knockbacks 38 | . 6 . . . . . . . 1 . . . . . . . . 31 . Impact 2 | . . . . . . . . . 1 . . . . . . . . 1 . Kinetic 32 | . 6 . . . . . . . . . . . . . . . . 26 . Secondary 4 | . . . . . . . . . . . . . . . . . . 4 . Self-Inflicted Damage 584 | . . . . . . . . 100 49 75 . 93 . . . 1 . 180 86 Shots 30 | . . . . . . . . 4 2 4 . 6 . . . 1 . 6 7 Rammed 45 | . 3 . 21 3 . 1 . . 5 . . . . . 4 . . 8 . Targets Rammed 48 | . 3 . 21 4 . 2 . . 6 . . . . . 4 . . 8 . Kicked . | . . . . . . . . . . . . . . . . . . . . Crushed 3 | . . . . 1 . 1 . . 1 . . . . . . . . . . Highest Temperature 476 | . 375 109 120 27 227 171 155 357 306 476 194 208 . 30 69 260 438 462 390 Average Temperature 93 | . 128 54 17 7 86 50 43 139 101 129 95 61 . 14 31 83 120 91 194 Received Heat Transfer 4467 | . 360 20 369 184 . 83 630 501 279 369 . 339 . 57 63 123 54 910 126 Effects 17 | . 4 . . . . . . 4 . 1 . . . . . . 1 4 3 Shutdowns 6 | . 1 . . . . . . . . 1 . . . . . . 1 2 1 Energy Bleed 2 | . . . . . . . . . . . . . . . . . . 1 1 Interference 9 | . 3 . . . . . . 4 . . . . . . . . . 1 1 Siege Activations 44 | . . . . . . . . . . . . . . . . . 3 39 2 Total Turns 694 | . . . . . . . . . . . . . . . . . 57 544 93 Longest Duration 119 | . . . . . . . . . . . . . . . . . 24 119 54 Robots Corrupted 20 | . . . . . . . . . . . . 8 . . . 4 1 2 5 Combat Hostiles 20 | . . . . . . . . . . . . 8 . . . 4 1 2 5 Parts Fried 34 | . . . . . . . . . 4 1 1 8 . . . 1 1 13 5 Impact Corruptions 5 | . . . . . . . . . . 2 . . . . . . . 3 . Robots Melted 4 | . . . . . . . . . 1 . . 1 . . . . 1 1 . Combat Hostiles 4 | . . . . . . . . . 1 . . 1 . . . . 1 1 . Parts Melted 40 | . 3 . 13 . . . 6 3 1 1 . . . . . . 3 8 2 Heat Transferred 23642 | . 1793 . 3367 . 657 . 1924 1480 1369 1073 37 346 . . 37 1430 4477 4736 916 Parts Sabotaged . | . . . . . . . . . . . . . . . . . . . . Parts Stolen . | . . . . . . . . . . . . . . . . . . . . Parts Stripped . | . . . . . . . . . . . . . . . . . . . . Power Chain Reactions 15 | . . . . . . . . 2 . . . 1 . . . 7 . 1 4 Missiles Intercepted . | . . . . . . . . . . . . . . . . . . . . Alert | -11 -10 -10 -9 -9 -9 -8 -8 -8 -8 -8 -7 -7 -6 -6 -6 -6 -6 -6 -6 ------- Run | Jun Mat Min Mat Min Exi Min Mat Gar Mat Gar Fac Gar Fac Gar Ext Cet Arc Hub Gar Peak Influence 983 | . 257 58 650 258 . 119 312 946 573 983 540 642 336 608 570 314 193 526 524 Initial 515 | . . 58 16 148 . . 11 202 460 128 515 255 336 251 319 29 96 . 282 Average 264 | . 110 50 289 68 . 53 138 574 458 645 438 523 336 358 232 183 41 152 376 Maximum Alert Level 3 | . 1 . 2 1 . . 1 3 2 3 2 2 1 2 2 1 . 2 2 Low Security (%) 49 | . 88 100 36 88 . 100 66 . 7 7 . . . . 58 37 100 78 . Level 1 25 | . 11 . 39 11 . . 33 35 19 12 49 18 100 73 16 62 . 16 60 Level 2 18 | . . . 23 . . . . 25 73 30 50 81 . 26 24 . . 4 39 Level 3 5 | . . . . . . . . 38 . 48 . . . . . . . . . Level 4 . | . . . . . . . . . . . . . . . . . . . . Level 5 . | . . . . . . . . . . . . . . . . . . . . High Security . | . . . . . . . . . . . . . . . . . . . . Max Security . | . . . . . . . . . . . . . . . . . . . . Squads Dispatched 44 | . 3 . 7 1 . . 6 . 5 . 1 . 1 . 2 1 . 17 . Investigation 16 | . 2 . 5 1 . . 2 . 2 . 1 . 1 . . . . 2 . Extermination 5 | . . . . . . . . . . . . . . . . . . 5 . Reinforcement 21 | . 1 . 1 . . . 4 . 3 . . . . . 2 . . 10 . Assault 2 | . . . 1 . . . . . . . . . . . . 1 . . . Garrison . | . . . . . . . . . . . . . . . . . . . . Intercept . | . . . . . . . . . . . . . . . . . . . . Searches Triggered . | . . . . . . . . . . . . . . . . . . . . Construction Impeded 4 | . . . . . . . . . 1 . . . . . 1 . . 2 . Haulers Reinforced 2 | . . . . . . . . . . . . . . . . . . 2 . Active Scanning Responses . | . . . . . . . . . . . . . . . . . . . . Cargo Convoy Interrupts . | . . . . . . . . . . . . . . . . . . . . Stealth | -11 -10 -10 -9 -9 -9 -8 -8 -8 -8 -8 -7 -7 -6 -6 -6 -6 -6 -6 -6 --------- Run | Jun Mat Min Mat Min Exi Min Mat Gar Mat Gar Fac Gar Fac Gar Ext Cet Arc Hub Gar Distress Signals 28 | . 3 . 4 . . . 5 1 7 . . . . . 1 2 . 5 . Communications Jammed . | . . . . . . . . . . . . . . . . . . . . Distress Signals . | . . . . . . . . . . . . . . . . . . . . Times Spotted 517 | . 27 8 53 10 . 7 52 22 22 25 1 25 . 20 28 23 110 68 16 Peak Tracking Total 8 | . 6 5 5 3 . 3 6 4 5 7 1 6 . 3 5 8 1 8 4 Tactical Retreats 19 | . 1 2 2 . . . 1 1 2 1 . 2 . . . . . 7 . Traps | -11 -10 -10 -9 -9 -9 -8 -8 -8 -8 -8 -7 -7 -6 -6 -6 -6 -6 -6 -6 ------- Run | Jun Mat Min Mat Min Exi Min Mat Gar Mat Gar Fac Gar Fac Gar Ext Cet Arc Hub Gar Traps Triggered 33 | . 2 . 3 . . . 3 11 1 . . 8 . 2 3 . . . . Indirectly 5 | . . . . . . . . . . . . 5 . . . . . . . Trap Hack Attempts . | . . . . . . . . . . . . . . . . . . . . Triggered . | . . . . . . . . . . . . . . . . . . . . Disarmed . | . . . . . . . . . . . . . . . . . . . . Reprogrammed . | . . . . . . . . . . . . . . . . . . . . Reused . | . . . . . . . . . . . . . . . . . . . . Traps Extracted . | . . . . . . . . . . . . . . . . . . . . Installed . | . . . . . . . . . . . . . . . . . . . . Triggered 1 | . . . . . . . . . . . . 1 . . . . . . . Machines | -11 -10 -10 -9 -9 -9 -8 -8 -8 -8 -8 -7 -7 -6 -6 -6 -6 -6 -6 -6 ---------- Run | Jun Mat Min Mat Min Exi Min Mat Gar Mat Gar Fac Gar Fac Gar Ext Cet Arc Hub Gar Machines Disabled 33 | . . . 4 . . 1 . 2 . 5 . 1 . 3 1 1 2 13 . Max in Single Turn 7 | . . . 1 . . . . 1 . 1 . 1 . 1 1 1 1 7 . Garrison Relay 6 | . . . . . . . . 1 . 3 . 1 . 1 . . . . . Network Hub 3 | . . . . . . . . . . . . . . . . . . 3 . Machines Repaired 1 | . . . . . . . . . . . . . . . . . . 1 . Machines Sabotaged . | . . . . . . . . . . . . . . . . . . . . Overloaded Fab Kills . | . . . . . . . . . . . . . . . . . . . . Hacking | -11 -10 -10 -9 -9 -9 -8 -8 -8 -8 -8 -7 -7 -6 -6 -6 -6 -6 -6 -6 --------- Run | Jun Mat Min Mat Min Exi Min Mat Gar Mat Gar Fac Gar Fac Gar Ext Cet Arc Hub Gar Machines Accessed 51 | . 8 . 5 2 2 . 3 3 2 2 2 2 1 2 4 1 . 12 . Terminals 37 | . 6 . 3 . . . 2 3 1 2 . 2 . 2 4 1 . 11 . Fabricators . | . . . . . . . . . . . . . . . . . . . . Repair Stations 1 | . . . . . . . . . . . 1 . . . . . . . . Recycling Units 4 | . 2 . 2 . . . . . . . . . . . . . . . . Scanalyzers . | . . . . . . . . . . . . . . . . . . . . Garrison Access 5 | . . . . . . . 1 . 1 . 1 . 1 . . . . 1 . Total Hacks 124 | . 17 . 19 2 2 . 7 4 6 4 11 2 2 3 11 3 . 31 . Successful 71 | . 8 . 11 2 2 . 4 2 6 2 10 2 2 2 5 . . 13 . Failed 52 | . 9 . 7 . . . 3 2 . 2 1 . . 1 6 3 . 18 . Catastrophic 13 | . 4 . 2 . . . . . . . . . . . 1 2 . 4 . Database Lockouts 1 | . . . 1 . . . . . . . . . . . . . . . . Manual 75 | . 21 . 18 . 1 . 2 . 5 . 1 . 1 . 5 . . 21 . Terminals 98 | . 15 . 17 . . . 5 4 4 4 . 2 . 3 11 3 . 30 . Fabricators . | . . . . . . . . . . . . . . . . . . . . Repair Stations 9 | . . . . . . . . . . . 9 . . . . . . . . Recycling Units 4 | . 2 . 2 . . . . . . . . . . . . . . . . Scanalyzers . | . . . . . . . . . . . . . . . . . . . . Garrison Access 9 | . . . . . . . 2 . 2 . 2 . 2 . . . . 1 . Terminal Hacks 38 | . 6 . 6 2 2 . 1 2 1 2 . 2 . 2 5 . . 7 . Record 1 | . . . . . 1 . . . . . . . . . . . . . . Part Schematic 2 | . 1 . . . . . . . . . . . . . . . . 1 . Robot Analysis 5 | . 4 . 1 . . . . . . . . . . . . . . . . Prototype ID Bank 5 | . . . 3 . . . 1 . 1 . . . . . . . . . . Open Door 6 | . . . . 2 . . . 1 . . . . . 1 2 . . . . Emergency Access Points 3 | . . . . . . . . . . 1 . 1 . 1 . . . . . Terminal Index 1 | . . . . . . . . . . . . . . . . . . 1 . Garrison Index 1 | . . . . . . . . . . . . . . . . . . 1 . Unreport Threat 7 | . . . 2 . . . . . . . . . . . 2 . . 3 . Locate Traps 3 | . 1 . . . . . . . . . . . . . 1 . . 1 . Garrison Registry 1 | . . . . . . . . 1 . . . . . . . . . . . Patrol Navigation 1 | . . . . . . . . . . . . 1 . . . . . . . Security Stations 1 | . . . . . . . . . . 1 . . . . . . . . . EX-Prototype ID Bank 1 | . . . . . 1 . . . . . . . . . . . . . . Fabricator Hacks . | . . . . . . . . . . . . . . . . . . . . Repair Station Hacks 8 | . . . . . . . . . . . 8 . . . . . . . . Scan Component 4 | . . . . . . . . . . . 4 . . . . . . . . Repair 4 | . . . . . . . . . . . 4 . . . . . . . . Recycling Unit Hacks . | . . . . . . . . . . . . . . . . . . . . Scanalyzer . | . . . . . . . . . . . . . . . . . . . . Garrison Access Hacks 5 | . . . . . . . 1 . 1 . 1 . 1 . . . . 1 . Unlock Access 5 | . . . . . . . 1 . 1 . 1 . 1 . . . . 1 . Unauthorized Hacks 20 | . 2 . 5 . . . 2 . 4 . 1 . 1 . . . . 5 . Terminals 13 | . . . 3 . . . 2 . 3 . . . . . . . . 5 . Track 1 | . . . . . . . . . 1 . . . . . . . . . . Assimilate 1 | . . . . . . . 1 . . . . . . . . . . . . Botnet 6 | . . . 2 . . . 1 . 1 . . . . . . . . 2 . Operators 3 | . . . 1 . . . . . 1 . . . . . . . . 1 . Sabotage 2 | . . . . . . . . . . . . . . . . . . 2 . Fabricators . | . . . . . . . . . . . . . . . . . . . . Repair Stations . | . . . . . . . . . . . . . . . . . . . . Recycling Units 4 | . 2 . 2 . . . . . . . . . . . . . . . . Tunnel 4 | . 2 . 2 . . . . . . . . . . . . . . . . Scanalyzers . | . . . . . . . . . . . . . . . . . . . . Garrison Access 3 | . . . . . . . . . 1 . 1 . 1 . . . . . . Eject 3 | . . . . . . . . . 1 . 1 . 1 . . . . . . Data Cores Recovered 1 | . 1 . . . . . . . . . . . . . . . . . . Used . | . . . . . . . . . . . . . . . . . . . . Hacking Detections 31 | . 7 . 2 . . . 2 2 2 2 1 1 1 . 2 1 . 8 . Full Trace Events 2 | . . . . . . . 1 . . 1 . . . . . . . . . Feedback Events . | . . . . . . . . . . . . . . . . . . . . Feedback Blocked . | . . . . . . . . . . . . . . . . . . . . Robot Schematics Acquired . | . . . . . . . . . . . . . . . . . . . . Robots Built . | . . . . . . . . . . . . . . . . . . . . Authchips . | . . . . . . . . . . . . . . . . . . . . Time . | . . . . . . . . . . . . . . . . . . . . Total Robot Build Rating . | . . . . . . . . . . . . . . . . . . . . Part Schematics Acquired 2 | . 1 . . . . . . . . . . . . . . . . 1 . Parts Built . | . . . . . . . . . . . . . . . . . . . . Authchips . | . . . . . . . . . . . . . . . . . . . . Time . | . . . . . . . . . . . . . . . . . . . . Total Part Build Rating . | . . . . . . . . . . . . . . . . . . . . Parts Repaired 4 | . . . . . . . . . . . 4 . . . . . . . . Time 152 | . . . . . . . . . . . 152 . . . . . . . . Parts Recycled . | . . . . . . . . . . . . . . . . . . . . Recycled Matter . | . . . . . . . . . . . . . . . . . . . . Retrieved Matter . | . . . . . . . . . . . . . . . . . . . . Retrieved Components . | . . . . . . . . . . . . . . . . . . . . Parts Scanalyzed . | . . . . . . . . . . . . . . . . . . . . Part Schematics Acquired . | . . . . . . . . . . . . . . . . . . . . Parts Damaged . | . . . . . . . . . . . . . . . . . . . . Bothacking | -11 -10 -10 -9 -9 -9 -8 -8 -8 -8 -8 -7 -7 -6 -6 -6 -6 -6 -6 -6 ------------ Run | Jun Mat Min Mat Min Exi Min Mat Gar Mat Gar Fac Gar Fac Gar Ext Cet Arc Hub Gar Used RIF Installer 6 | . . . . . . . . 2 . 1 . 1 . 2 . . . . . Hotswap 1 | . . . . . . . . . . 1 . . . . . . . . . Code Merge 1 | . . . . . . . . . . . . . . 1 . . . . . Threat Obfuscator 1 | . . . . . . . . 1 . . . . . . . . . . . Zone Cloak 1 | . . . . . . . . . . . . . . 1 . . . . . Program Shield 1 | . . . . . . . . . . . . 1 . . . . . . . Robots Hacked 2 | . . . . . . . . . 2 . . . . . . . . . . Non-combat 2 | . . . . . . . . . 2 . . . . . . . . . . Combat . | . . . . . . . . . . . . . . . . . . . . Robot Hacks Applied 4 | . . . . . . . . . 4 . . . . . . . . . . no_distress 1 | . . . . . . . . . 1 . . . . . . . . . . purge_threat 2 | . . . . . . . . . 2 . . . . . . . . . . streamctrl_low 1 | . . . . . . . . . 1 . . . . . . . . . . Relay Couplers Released 37 | . . . . . . . . 5 4 12 3 5 3 5 . . . . . Ejected 10 | . . . . . . . . . 4 . 3 . 3 . . . . . . Machine Destruction 27 | . . . . . . . . 5 . 12 . 5 . 5 . . . . . Attached 2 | . . . . . . . . . 1 . . . . . . 1 . . . Fabnet Peak Effective % . | . . . . . . . . . . . . . . . . . . . . Robots Rewired 25 | . . . . . 4 . . 5 . . . 3 . 2 11 . . . . Allies Hacked . | . . . . . . . . . . . . . . . . . . . . Hacks Repelled . | . . . . . . . . . . . . . . . . . . . . Allies | -11 -10 -10 -9 -9 -9 -8 -8 -8 -8 -8 -7 -7 -6 -6 -6 -6 -6 -6 -6 -------- Run | Jun Mat Min Mat Min Exi Min Mat Gar Mat Gar Fac Gar Fac Gar Ext Cet Arc Hub Gar Total Allies 28 | . . . . . 4 . . 5 1 . . 3 . 2 13 . . . . Largest Group 7 | . . . . . 4 4 . 4 1 . . 3 . 2 7 5 . . . Highest-Rated Group 277 | . . . . . 45 45 . 76 26 . . 60 . 97 277 277 . . . Highest-Rated Ally 159 | . . . . . 21 21 . 31 26 . . 20 . 51 159 159 . . . Total Orders 51 | . . . . . . . . 2 3 . . 3 . 28 9 2 . 4 . STAY 7 | . . . . . . . . 1 . . . 3 . 2 . 1 . . . ROAM 3 | . . . . . . . . . 1 . . . . 1 . . . 1 . FOLLOW 8 | . . . . . . . . 1 . . . . . 6 . 1 . . . EXPLORE 3 | . . . . . . . . . 2 . . . . . . . . 1 . RETURN 30 | . . . . . . . . . . . . . . 19 9 . . 2 . Ally Attacks 508 | . . . . . . 18 . 37 . . . 16 . 156 219 62 . . . Total Damage 10557 | . . . . . . 203 . 601 . . . 359 . 2812 4900 1682 . . . Kills 78 | . . . . . . 5 . 6 . . . 2 . 20 36 9 . . . Allies Corrupted 1 | . . . . . . . . . . . . . . 1 . . . . . Allies Melted . | . . . . . . . . . . . . . . . . . . . . Intel | -11 -10 -10 -9 -9 -9 -8 -8 -8 -8 -8 -7 -7 -6 -6 -6 -6 -6 -6 -6 ------- Run | Jun Mat Min Mat Min Exi Min Mat Gar Mat Gar Fac Gar Fac Gar Ext Cet Arc Hub Gar Robot Analysis Total 5 | . 4 . 1 . . . . . . . . . . . . . . . . Derelict Logs Recovered 1 | . . . . 1 . . . . . . . . . . . . . . . Drone Launches 213 | . . . . . . . . . 4 . . . . 128 72 6 . 3 . Drone Recoveries 177 | . . . . . . . . . . . . . . 117 59 . . 1 . Exploration | -11 -10 -10 -9 -9 -9 -8 -8 -8 -8 -8 -7 -7 -6 -6 -6 -6 -6 -6 -6 ------------- Run | Jun Mat Min Mat Min Exi Min Mat Gar Mat Gar Fac Gar Fac Gar Ext Cet Arc Hub Gar Turns Passed 28994 | . 1320 305 3027 1888 2441 841 2319 1959 1056 1538 787 1181 93 1667 1932 558 2011 3866 205 Spaces Moved 10296 | 1 649 325 1044 549 565 145 683 573 333 769 272 413 36 610 732 186 826 1547 38 Core 216 | . . 216 . . . . . . . . . . . . . . . . . Treads 9388 | . 563 109 1044 549 565 145 214 437 333 769 272 413 36 610 732 186 826 1547 38 Legs 87 | 1 86 . . . . . . . . . . . . . . . . . . Wheels 605 | . . . . . . . 469 136 . . . . . . . . . . . Hover . | . . . . . . . . . . . . . . . . . . . . Flight . | . . . . . . . . . . . . . . . . . . . . Fastest Speed 50 | 120 120 50 160 320 320 560 230 162 162 160 160 240 240 240 242 160 160 160 160 Average Speed 225 | 120 160 87 239 320 404 560 264 273 210 168 217 240 240 242 242 207 160 161 229 Slowest Speed 560 | 120 240 240 480 320 560 560 410 560 242 240 240 240 240 322 242 325 160 240 240 Overloaded Moves . | . . . . . . . . . . . . . . . . . . . . Propulsion Burnouts . | . . . . . . . . . . . . . . . . . . . . Robots Hopped . | . . . . . . . . . . . . . . . . . . . . Cave-ins Triggered . | . . . . . . . . . . . . . . . . . . . . Exploration Rate (%) 59 | 1 96 65 79 97 88 54 54 60 37 83 4 45 1 60 90 67 97 93 14 Regions Visited 19 Branch Regions 8 Pre-discovered Areas 6 | . 2 . 2 1 1 . . . . . . . . . . . . . . Known Exits Taken 5 | . . . . . . . 1 . 1 . 1 . 1 . . . . 1 . Unknown Exits Taken 10 | 1 1 1 1 1 1 1 . . . . . . . . 1 1 1 . . Scrap Searched 1 | . . . . 1 . . . . . . . . . . . . . . . Spaces Dug 77 | . . . . . . . . 15 23 14 2 . . . . 10 . 9 4 Terrain Destroyed 557 | . . . . . . . 3 34 42 78 2 . . . 6 59 2 315 16 Melee 4 | . . . . . . . . . 2 . 2 . . . . . . . . Projectile 71 | . . . . . . . 3 2 13 1 . . . . 1 1 2 48 . AOE 482 | . . . . . . . . 32 27 77 . . . . 5 58 . 267 16 Terrain Rammed . | . . . . . . . . . . . . . . . . . . . . Walls Destroyed . | . . . . . . . . . . . . . . . . . . . . Machines Disabled . | . . . . . . . . . . . . . . . . . . . . Actions | -11 -10 -10 -9 -9 -9 -8 -8 -8 -8 -8 -7 -7 -6 -6 -6 -6 -6 -6 -6 --------- Run | Jun Mat Min Mat Min Exi Min Mat Gar Mat Gar Fac Gar Fac Gar Ext Cet Arc Hub Gar Total 14363 | . 796 346 1353 625 692 156 947 881 600 900 455 546 43 801 875 316 1295 2626 110 Wait 1977 | . 49 8 59 3 34 1 33 102 178 41 156 25 . 129 66 19 298 740 36 Move 10281 | . 648 324 1043 548 564 144 683 572 333 768 271 412 36 609 731 185 825 1547 38 Hop . | . . . . . . . . . . . . . . . . . . . . Pick Up 198 | . 7 7 45 10 11 . 25 8 6 3 8 10 2 12 2 7 4 31 . Fast Attach 104 | . 5 2 14 2 1 . 12 2 4 1 3 1 1 8 3 14 11 20 . Attach 133 | . 6 . 18 10 6 . 18 14 2 4 4 8 2 5 1 6 2 24 3 Detach 30 | . 2 . 4 1 2 . 3 1 2 1 1 1 . 3 . 1 1 7 . Swap 96 | . 1 . 8 4 2 1 5 7 16 15 3 5 . 1 4 11 4 6 3 Drop 187 | . 4 5 25 11 7 . 23 15 9 3 3 2 2 20 5 22 6 25 . Fire 1045 | . 71 . 116 32 19 8 145 52 38 49 4 44 . 6 18 51 144 218 30 Melee 28 | . . . . . . . . 4 6 15 2 1 . . . . . . . Ram . | . . . . . . . . . . . . . . . . . . . . Kick . | . . . . . . . . . . . . . . . . . . . . Crush 48 | . 3 . 21 4 . 2 . . 6 . . . . . 4 . . 8 . Escape Stasis 43 | . . . . . . . . 23 . . . 12 . 2 6 . . . . Rewire 193 | . . . . . 46 . . 81 . . . 25 . 6 35 . . . . Trap . | . . . . . . . . . . . . . . . . . . . . Miscellaneous . | . . . . . . . . . . . . . . . . . . . . Route ------- -11/Junkyard -10/Materials (discovered 5 exits: *Mat x3 / [*Min x2]) -10/Mines -9/Materials (discovered 3 exits: *Mat x2 / *Min) -9/Mines (discovered 3 exits: *Mat x2 / *Exi) -9/Exiles -8/Mines -8/Materials (discovered 4 exits: *Fac x2 / [*Sto] / Gar) -8/Garrison (discovered 4 exits: *Mat x4) -8/Materials (discovered 4 exits: *Fac / [*Sto x2] / Gar) -8/Garrison (discovered 2 exits: *Fac x2) -7/Factory -7/Garrison -6/Factory -6/Garrison (discovered 2 exits: *Ext x2) -6/Extension (discovered 2 exits: *Fac / *Cet) -6/Cetus (discovered 2 exits: *Fac / [*Arc]) -6/Archives (discovered 3 exits: *Fac / *Hub x2) -6/Hub_04(d) (discovered 5 exits: *Fac x4 / Gar) -6/Garrison History --------- Turn | Location | Event 1 | -11/Junkyard | Discovered new exit (range 0) 1 | -11/Junkyard | Entered Materials 302 | -10/Materials | Build established: Mutant 316 | -10/Materials | Discovered new exit (range 10) 359 | -10/Materials | Discovered new exit (range 15) 546 | -10/Materials | Discovered new exit (range 5) 652 | -10/Materials | Lost 3 parts (1p1u1w) 655 | -10/Materials | Discovered new exit (range 15) 1171 | -10/Materials | Discovered new exit (range 4) 1321 | -10/Materials | Entered Mines 1321 | -10/Mines | Discovered new exit (range 3) 1334 | -10/Mines | Joined a pair of Derelicts in attacking an 0b10 outpost 1474 | -10/Mines | Assembled infested the area 1479 | -10/Mines | Assisted by a Guerilla fighting off Assembled 1511 | -10/Mines | Released all parts (4) 1513 | -10/Mines | Core integrity fell below 50% 1515 | -10/Mines | Core integrity fell below 20% 1541 | -10/Mines | Lost 3 parts (2n1u) 1626 | -10/Mines | Entered Materials 1626 | -9/Materials | Evolved 2 slots: Utility x2 2102 | -9/Materials | Build established: Scavenger-Mutant 2487 | -9/Materials | Lost 3 parts (2n1u) 2903 | -9/Materials | Discovered new exit (range 5) 3233 | -9/Materials | Core integrity fell below 50% 3254 | -9/Materials | Discovered new exit (range 9) 3716 | -9/Materials | Build established: Mutant 3798 | -9/Materials | Central database locked down 4026 | -9/Materials | First assault squad dispatched 4258 | -9/Materials | Discovered new exit (range 7) 4653 | -9/Materials | Entered Mines 4675 | -9/Mines | Met a Derelict bent on vengeance 4770 | -9/Mines | Met a Derelict testing a Signal Generator 4778 | -9/Mines | Found Signal Generator 4930 | -9/Mines | Found the Drone Emporium 4957 | -9/Mines | Found Prototype Device 4957 | -9/Mines | Identified Decoy Drone Bay 5265 | -9/Mines | Learned location of Storage (-8) 5393 | -9/Mines | Found a damaged Exp. Sensor Array with a note attached 5400 | -9/Mines | Found Prototype Device 5401 | -9/Mines | Identified Exp. Sensor Array 5569 | -9/Mines | Deemed a non-threat by the Exiles lab entrance 5569 | -9/Mines | Discovered new exit (range 5) 5854 | -9/Mines | Discovered new exit (range 6) 5918 | -9/Mines | Discovered new exit (range 9) 5951 | -9/Mines | Met a Derelict shopkeep closing up shop 5955 | -9/Mines | Core integrity fell below 20% 6356 | -9/Mines | Build established: Scavenger-Mutant 6541 | -9/Mines | Entered Exiles 6541 | -9/Exiles | Found Exiles lab destroyed 6982 | -9/Exiles | Learned location of Zion (-6) 7156 | -9/Exiles | Opened EX-Vault 7223 | -9/Exiles | Found Army-in-a-Box 8138 | -9/Exiles | Build established: Hauler-Mutant 8926 | -9/Exiles | Discovered new exit (range 12) 8982 | -9/Exiles | Entered Mines 8982 | -8/Mines | Accompanied by 4 allies 9784 | -8/Mines | Discovered new exit (range 7) 9823 | -8/Mines | Entered Materials 9823 | -8/Materials | Evolved 2 slots: Propulsion x2 10827 | -8/Materials | Discovered new exit (range 20) 10844 | -8/Materials | Discovered new exit (range 6) 12046 | -8/Materials | Discovered new exit (range 13) 12142 | -8/Materials | Identified exit to Garrison 12142 | -8/Materials | Entered Garrison 12206 | -8/Garrison | Triggered checkpoint 12532 | -8/Garrison | Triggered checkpoint 12656 | -8/Garrison | Core integrity fell below 50% 12739 | -8/Garrison | Discovered new exit (range 8) 12836 | -8/Garrison | Triggered checkpoint 12920 | -8/Garrison | Triggered checkpoint 13006 | -8/Garrison | Discovered new exit (range 72) 13006 | -8/Garrison | Discovered new exit (range 36) 13006 | -8/Garrison | Discovered new exit (range 29) 13006 | -8/Garrison | Discovered new exit (range 75) 13335 | -8/Garrison | Triggered checkpoint 13554 | -8/Garrison | Build established: Mutant 13561 | -8/Garrison | Installed Relay Interface Framework 13650 | -8/Garrison | Triggered checkpoint 13777 | -8/Garrison | Expanded RIF knowledge: Threat Obfuscation 14065 | -8/Garrison | Garrison Relay disabled 14101 | -8/Garrison | Entered Materials 14283 | -8/Materials | Discovered new exit (range 60) 14287 | -8/Materials | Discovered new exit (range 59) 14303 | -8/Materials | Discovered new exit (range 40) 15157 | -8/Materials | Identified exit to Garrison 15157 | -8/Materials | Entered Garrison 15180 | -8/Garrison | Triggered checkpoint 15279 | -8/Garrison | Triggered checkpoint 15342 | -8/Garrison | Destroyed 7 combat bots 15608 | -8/Garrison | Discovered new exit (range 14) 15668 | -8/Garrison | Triggered checkpoint 15682 | -8/Garrison | Learned Factory security intel 15800 | -8/Garrison | Triggered checkpoint 15924 | -8/Garrison | Expanded RIF knowledge: Hotswap 15957 | -8/Garrison | Discovered new exit (range 8) 16110 | -8/Garrison | Triggered checkpoint 16146 | -8/Garrison | Core integrity fell below 20% 16184 | -8/Garrison | Garrison Relay disabled 16357 | -8/Garrison | Garrison Relay disabled 16475 | -8/Garrison | Triggered checkpoint 16500 | -8/Garrison | Garrison Relay disabled 16695 | -8/Garrison | Entered Factory 16695 | -7/Factory | Evolved 2 slots: Utility x2 16907 | -7/Factory | Repaired Hvy. Particle Cannon 16947 | -7/Factory | Repaired Hvy. Particle Cannon 16991 | -7/Factory | Repaired Med. Treads 17023 | -7/Factory | Repaired Hpw. Tractor Beam 17211 | -7/Factory | Build established: Hacker-Mutant 17468 | -7/Factory | Identified exit to Garrison 17482 | -7/Factory | Entered Garrison 17662 | -7/Garrison | Triggered checkpoint 17712 | -7/Garrison | Triggered checkpoint 17715 | -7/Garrison | Garrison Relay disabled 17727 | -7/Garrison | System corruption reached 10% 17754 | -7/Garrison | Lost 4 parts (1n2u1w) 18009 | -7/Garrison | Build established: Mutant 18066 | -7/Garrison | Triggered checkpoint 18110 | -7/Garrison | Triggered checkpoint 18186 | -7/Garrison | Destroyed 8 combat bots 18192 | -7/Garrison | Lost 4 parts (1p2n1u) 18372 | -7/Garrison | Discovered new exit (range 12) 18402 | -7/Garrison | Expanded RIF knowledge: Program Shield 18429 | -7/Garrison | Build established: Scavenger-Mutant 18436 | -7/Garrison | Identified exit to Factory 18470 | -7/Garrison | Triggered checkpoint 18663 | -7/Garrison | Entered Factory 18663 | -6/Factory | Evolved 2 slots: Utility x2 18756 | -6/Factory | Identified exit to Garrison 18756 | -6/Factory | Entered Garrison 19058 | -6/Garrison | Triggered checkpoint 19064 | -6/Garrison | Triggered checkpoint 19066 | -6/Garrison | Build established: Mutant 19104 | -6/Garrison | Triggered checkpoint 19166 | -6/Garrison | Discovered new exit (range 11) 19239 | -6/Garrison | Expanded RIF knowledge: Zone Cloak 19296 | -6/Garrison | Triggered checkpoint 19406 | -6/Garrison | Heavy support dispatched to Extension 19472 | -6/Garrison | Heavy support dispatched to Extension 19600 | -6/Garrison | Found Prototype Device 19785 | -6/Garrison | Discovered new exit (range 13) 20010 | -6/Garrison | Triggered checkpoint 20064 | -6/Garrison | Spotted B-75 Beast 20108 | -6/Garrison | Allies destroyed B-75 Beast 20204 | -6/Garrison | Expanded RIF knowledge: Code Merge 20231 | -6/Garrison | Heavy support dispatched to Extension 20337 | -6/Garrison | Heavy support dispatched to Extension 20423 | -6/Garrison | Entered Extension 20658 | -6/Extension | Rescued a captive Derelict 21439 | -6/Extension | Build established: Scavenger-Mutant 21726 | -6/Extension | Spotted B-75 Beast 21736 | -6/Extension | Allies destroyed B-75 Beast 21738 | -6/Extension | Spotted B-75 Beast 21742 | -6/Extension | Allies destroyed B-75 Beast 21955 | -6/Extension | Build established: Mutant 22235 | -6/Extension | Rescued A7 22333 | -6/Extension | Discovered new exit (range 10) 22336 | -6/Extension | Discovered new exit (range 6) 22355 | -6/Extension | Entered Cetus 22355 | -6/Cetus | Accompanied by 5 allies (A7) 22360 | -6/Cetus | Acquired a Cetus Manufacturing Module code from A7 22386 | -6/Cetus | Spotted Cetus Guard 22386 | -6/Cetus | Spotted Cetus Guard 22389 | -6/Cetus | Spotted Cetus Guard 22389 | -6/Cetus | Spotted Cetus Guard 22397 | -6/Cetus | Build established: Scavenger-Mutant 22400 | -6/Cetus | Allies destroyed Cetus Guard 22414 | -6/Cetus | Destroyed Cetus Guard 22417 | -6/Cetus | Allies destroyed Cetus Guard 22419 | -6/Cetus | Destroyed Cetus Guard 22512 | -6/Cetus | System corruption reached 10% 22522 | -6/Cetus | Escorted A7 to Cetus Mainframe 22589 | -6/Cetus | Discovered new exit (range 15) 22632 | -6/Cetus | Spotted Cetus Guard 22632 | -6/Cetus | Spotted Cetus Guard 22640 | -6/Cetus | Allies destroyed Cetus Guard 22640 | -6/Cetus | Spotted Cetus Guard 22646 | -6/Cetus | Destroyed Cetus Guard 22649 | -6/Cetus | Destroyed Cetus Guard 22649 | -6/Cetus | Spotted Cetus Guard 22652 | -6/Cetus | Destroyed Cetus Guard 22662 | -6/Cetus | Discovered new exit (range 16) 22678 | -6/Cetus | Met Revision 17 22694 | -6/Cetus | System corruption reached 30% 22855 | -6/Cetus | Destroyed A7 22861 | -6/Cetus | Extracted ID and sensor layout for unrecognized location from A7's data core 22913 | -6/Cetus | Entered Archives 23104 | -6/Archives | Discovered new exit (range 15) 23252 | -6/Archives | Discovered new exit (range 14) 23704 | -6/Archives | Discovered new exit (range 16) 24141 | -6/Archives | Build established: Mutant 24924 | -6/Archives | Entered Hub_04(d) 24942 | -6/Hub_04(d) | Discovered new exit (range 32) 24948 | -6/Hub_04(d) | Discovered new exit (range 55) 25169 | -6/Hub_04(d) | Discovered new exit (range 15) 25169 | -6/Hub_04(d) | Spotted B-75 Beast 25223 | -6/Hub_04(d) | Build established: Hacker-Mutant 25454 | -6/Hub_04(d) | Destroyed 7 combat bots 25623 | -6/Hub_04(d) | Discovered new exit (range 13) 25695 | -6/Hub_04(d) | Build established: Scavenger-Mutant 26041 | -6/Hub_04(d) | Build established: Hacker-Mutant 26837 | -6/Hub_04(d) | Core integrity fell below 50% 26889 | -6/Hub_04(d) | Lost 4 parts (3u1w) 26944 | -6/Hub_04(d) | Destroyed 7 combat bots 27576 | -6/Hub_04(d) | Identified exit to Factory 27619 | -6/Hub_04(d) | Build established: Scavenger-Mutant 28576 | -6/Hub_04(d) | Network Hub disabled 28576 | -6/Hub_04(d) | Network Hub disabled 28587 | -6/Hub_04(d) | Network Hub disabled 28593 | -6/Hub_04(d) | Core integrity fell below 20% 28790 | -6/Hub_04(d) | Identified exit to Garrison 28790 | -6/Hub_04(d) | Entered Garrison 28875 | -6/Garrison | Triggered checkpoint 28879 | -6/Garrison | Triggered checkpoint 28943 | -6/Garrison | Triggered checkpoint 28980 | -6/Garrison | Lost 4 parts (1n2u1w) 28985 | -6/Garrison | Destroyed 15 combat bots 28995 | -6/Garrison | Destroyed by P-70 Sage with High-powered Shock Rifle Last Messages --------------- 28952_ H-66 Slayer destroyed. 28961_ System corrupted: Heat flow error (+198). 28964_ Axe melted. 28964_ L-41 Fighter destroyed. 28964_ Switching to secondary target: B-48 Gladiator. 28965_ Power failure, Rnf. Quantum Reactor shutdown. 28970_ B-48 Gladiator suffers critical hit (Destroy). 28970_ Destroyed Lgt. Treads. 28972_ Overheating: System interference. 28972_ Imp. Signal Interpreter temporarily disabled. 28973_ System corrupted: Force Rifle failed to cycle. 28980_ B#TCOCQIZGG>FD 28982_ Melted Rnf. Deuterium Engine. 28983_ B-48 Gladiator overheating. 28984_ B-48 Gladiator heat damages core (-13). 28984_ B-48 Gladiator overheating. 28984_ B-48 Gladiator destroyed. 28986_ Overheating: Energy bleed (-84). 28991_ Ended siege mode. Map ----- +----------------------------------------------------+ | ?????????????????????????????????????????????????? | | ?????????????????????????????????????????????????? | | ?????????????????????????????????????????????????? | | ?????????????????????????????????????????????????? | | ?????????????????????????????????????????????????? | | ?????????????????????????????????????????????????? | | ?????????????????????????????????????????????????? | | ?????????????????????????????????????????????????? | | ?????????????????????????!=%?????????????????????? | | ????????????????????? ???%[[#????????????????????? | | ?????????????????? ??[* "????????????????????? | | ?????????????????? ?? #????????????????????? | | ?????????????? ?# ?# #????????????????????? | | ?????????????? ## ## ###??????????????????? | | ?????????????" ???????????????????? | | ??????????????? ^ ???????????????????? | | ???????????????? ????????????????????? | | ????????????????? ^ = [ ????????????????????? | | ?????????????# ???# ;= %##???????????????????? | | ?????????????# ## %!= !;####?###????????????? | | ?????????????# %[![%! ?? #???????????? | | ???????????????? =%==== ???? #???????????? | | ???????????????????? [%p%% #?????# #???????????? | | ???????????????????????#[! #??????# #???????????? | | ???????????????????????## #??????# #???????????? | | ????????????????????????#@ ##?????# #???????????? | | ????????????????????????# #?????# #???????????? | | ??????????????????????# =/ [%=??# #???????????? | | ??????????????????????# #### ## #???????????? | | ??????????????????????# % #?????# #???????????? | | ??????????????????????### =*####### #???????????? | | ????????????????????????# % ##### #?????? | | ????????????????????????# #?????? | | ????????????????????????########### ##### #?????? | | ??????????????????????????????????# #???????????? | | ??????????????????????????????????# #???????????? | | ??????????????????????????????????# #???????????? | | ??????????????????????????????????# #???????????? | | ??????????????????????????????????# #???????????? | | ??????????????????????????????????# ############# | | ??????????????????????????????????# | | ??????????????????????????????????# | | ??????????????????????????????????############# | | ??????????????????????????????????????????????# | | ??????????????????????????????????????????????#### | | ?????????????????????????????????????????????????? | | ?????????????????????????????????????????????????? | | ?????????????????????????????????????????????????? | | ?????????????????????????????????????????????????? | | ?????????????????????????????????????????????????? | +----------------------------------------------------+ Best States ------------- Heat Dissipation 92 Coolant Potential 50 Energy Generation 25 Energy Capacity 850 Matter Stores 300 Matter Capacity 300 Sight Range 20 Robot Scan Range 20 Terrain Scan Density 10 Cloak Strength 2 Armor Coverage 900 Resistance: EM 15 Weapon Cycling 25 Evasion (%) 55 Targeting Accuracy 8 Melee Accuracy 5 Launcher Accuracy 20 Target Analysis 5 Recoil Reduction 4 Offensive Hacking 24 Defensive Hacking 14 Relay Coupler Types 1 Relay Coupler Value 28 Item Schematics ----------------- Huge Storage Unit | -10/Materials | Hacked Cargo Storage Unit | -6/Hub_04(d) | Hacked Robot Schematics ------------------ None Fabricated ------------ Nothing Alien Tech Used ----------------- None Achievements -------------- Treasure Hunter Challenges ------------ None Game ------ Seed HeatImpactComputer Manual? 0 Play Time 02:19:13 Cumulative 304.2 hours Start 2023.04.18 @ 06:26:30 End 2023.04.19 @ 09:37:24 Sessions 11 Manual Loads 0 Difficulty Rogue Special Mode None Game No. 451 Rogue 428 Adventurer 4 Explorer 19 Win Type - Total 12 Types 10/0/0/2/0/0/0/0/0 Lore% 71 Gallery% 91 Achievement% 74 Wizard Run 0 Options --------- ASCII 0 Keyboard 1 Movement Numpad Keybinds 0 Fullscreen 2 Font 18/SmallcapsGlow Map View 76x50 Tactical HUD 1 Map Filters NONE Filters NONE Steam 1 RUN: 5d43b042-05ea-44c0-af59-00b3efd09a40